bitfinex/quotes_SOLUSD_20240726
["timestamp","ask_amount","ask_price","bid_price","bid_amount"]
[1722014940376,45.0,182.6,182.59,0.50737966]
[1722014940674,58.03,182.6,182.59,0.50737966]
[1722014940876,58.2,182.6,182.59,0.50737966]
[1722014941256,63.6764,182.6,182.59,0.50737966]
[1722014941675,58.2,182.6,182.59,0.50737966]
[1722014941860,63.6764,182.6,182.59,0.50737966]
[1722014944473,45.17,182.6,182.59,0.50737966]
[1722014944860,45.0,182.6,182.59,0.50737966]
[1722014945583,13.03,182.61,182.59,0.50737966]
[1722014945764,18.6758,182.62,182.59,0.50737966]
[1722014946079,13.2,182.61,182.59,0.50737966]
[1722014946380,13.03,182.61,182.59,0.50737966]
[1722014948573,5.4756,182.63,182.59,0.50737966]
[1722014948884,58.03,182.62,182.59,5.98397966]
[1722014949179,58.03,182.62,182.59,0.50737966]
[1722014949385,58.03,182.62,182.6,0.50737966]
[1722014949567,13.03,182.61,182.6,0.50737966]
[1722014949768,58.03,182.61,182.6,0.50737966]
[1722014950577,45.0,182.61,182.6,0.50737966]
[1722014950885,13.03,182.62,182.61,0.50737966]
[1722014951066,58.03,182.62,182.61,0.50737966]
[1722014951864,13.03,182.62,182.61,0.50737966]
[1722014952994,5.4753,182.64,182.61,0.50737966]
[1722014953280,45.0,182.63,182.61,0.50737966]
[1722014953588,58.03,182.63,182.61,0.50737966]
[1722014954099,5.4751,182.65,182.61,0.50737966]
[1722014954589,13.03,182.64,182.61,0.50737966]
[1722014955169,13.03,182.63,182.61,0.50737966]
[1722014955681,13.03,182.64,182.61,0.50737966]
[1722014956189,13.03,182.64,182.61,5.98337966]
[1722014956564,13.03,182.64,182.61,0.50737966]
[1722014957094,18.5053,182.64,182.61,0.50737966]
[1722014958592,13.03,182.64,182.61,0.50737966]
[1722014958770,13.03,182.64,182.61,5.98337966]
[1722014958962,5.4741,182.68,182.64,5.4751]
[1722014959286,13.03,182.67,182.64,5.4751]
[1722014959462,5.4738,182.69,182.65,11.8932]
[1722014959669,13.03,182.69,182.65,11.8932]
[1722014959870,18.5037,182.69,182.65,11.8932]
[1722014960073,18.5037,182.69,182.65,6.4183]
[1722014960373,13.03,182.68,182.65,11.8932]
[1722014960561,13.03,182.68,182.65,6.4183]
[1722014960761,18.5041,182.68,182.65,6.4183]
[1722014960958,13.03,182.67,182.65,6.4183]
[1722014962100,13.03,182.67,182.65,11.8932]
[1722014962389,5.4735,182.7,182.65,11.8932]
[1722014962697,13.03,182.68,182.65,11.8932]
[1722014962883,13.805273,182.66,182.63,13.6883]
[1722014963087,13.03,182.64,182.61,5.98347966]
[1722014963473,13.03,182.64,182.61,0.50737966]
[1722014963675,13.03,182.64,182.61,5.98347966]
[1722014964167,13.03,182.64,182.61,0.50737966]
[1722014964369,0.775273,182.66,182.61,0.50737966]
[1722014964370,13.03,182.62,182.61,0.50737966]
[1722014964581,58.03,182.62,182.61,0.50737966]
[1722014965693,6.249973,182.66,182.61,5.98327966]
[1722014965898,13.03,182.63,182.61,5.98337966]
[1722014966106,13.03,182.62,182.61,0.50737966]
[1722014966696,51.5358,182.62,182.61,0.50737966]
[1722014966899,13.03,182.57,182.56,5.4776]
[1722014967267,13.03,182.58,182.56,5.4776]
[1722014967463,58.03,182.57,182.55,11.5492]
[1722014968073,58.03,182.57,182.56,5.4776]
[1722014968598,45.0,182.57,182.56,5.4776]
[1722014969604,45.0,182.57,182.55,6.0713]
[1722014969776,58.03,182.57,182.55,6.0713]
[1722014969975,58.03,182.57,182.55,11.5489]
[1722014970698,13.03,182.56,182.55,6.0713]
[1722014970886,13.03,182.56,182.55,11.5492]
[1722014971276,58.03,182.56,182.55,6.0713]
[1722014971595,58.03,182.56,182.54,5.4781]
[1722014971785,45.0,182.55,182.54,5.4781]
[1722014972101,58.03,182.55,182.53,19.1744]
[1722014972302,13.03,182.54,182.53,19.1744]
[1722014974713,58.03,182.55,182.54,5.4782]
[1722014975210,58.03,182.55,182.53,13.6959]
[1722014975381,13.2,182.54,182.53,13.6959]
[1722014975577,58.03,182.54,182.53,13.6959]
[1722014975789,58.2,182.54,182.51,5.4791]
[1722014975987,13.03,182.52,182.5,27.3005]
[1722014976292,58.03,182.51,182.5,27.3005]
[1722014977315,58.03,182.51,182.5,5.4793]
[1722014977521,58.03,182.51,182.49,19.1782]
[1722014977688,13.03,182.5,182.49,19.1782]
[1722014977887,58.03,182.5,182.49,19.1782]
[1722014981519,45.0,182.5,182.49,19.1782]
[1722014981907,20.0,182.6,182.5,27.3971]
[1722014982219,22.28193025,182.65,182.59,19.1685]
[1722014982417,22.28193025,182.65,182.59,13.6918]
[1722014982418,20.0,182.65,182.59,13.6918]
[1722014982591,20.0,182.65,182.61,5.4761]
[1722014983288,13.03,182.63,182.62,5.4757]
[1722014983596,13.03,182.63,182.61,5.4761]
[1722014984215,0.775273,182.66,182.64,5.4752]
[1722014984513,13.03,182.65,182.64,5.4752]
[1722014986505,13.805273,182.66,182.64,5.4752]
[1722014987314,20.0,182.65,182.64,5.4752]
[1722014987993,0.775273,182.66,182.65,5.4749]
[1722014988327,20.775273,182.66,182.65,5.4749]
[1722014988917,20.775273,182.66,182.64,5.4752]
[1722014991020,20.775273,182.66,182.63,5.4755]
[1722014991519,33.805273,182.66,182.63,5.4755]
[1722014991721,33.805273,182.66,182.64,5.4752]
[1722014992923,33.805273,182.66,182.62,19.1647]
[1722014993123,33.805273,182.66,182.62,13.6892]
[1722014993615,13.03,182.63,182.62,13.6892]
[1722014993825,13.03,182.63,182.6,6.3741]
[1722014993826,13.03,182.63,182.6,11.8503]
[1722014994002,13.03,182.61,182.6,11.8503]
[1722014994399,13.03,182.61,182.59,13.6917]
[1722014994598,5.4757,182.63,182.59,13.6917]
[1722014994599,13.03,182.6,182.59,13.6917]
[1722014994994,13.03,182.6,182.57,15.2305]
[1722014995326,13.03,182.58,182.57,15.2305]
[1722014995623,45.0,182.59,182.57,15.2305]
[1722014995624,13.03,182.59,182.57,15.2305]
[1722014995802,13.03,182.6,182.59,5.4765]
[1722014996307,13.03,182.61,182.6,5.4763]
[1722014997298,13.03,182.61,182.59,5.4766]
[1722014998023,13.03,182.61,182.6,5.4764]
[1722014998229,13.03,182.62,182.6,5.4764]
[1722014999130,13.03,182.61,182.6,5.4764]
[1722014999307,13.03,182.62,182.61,5.4761]
[1722014999623,13.03,182.63,182.61,5.4761]
[1722015000127,13.03,182.63,182.6,5.4763]
[1722015000429,13.03,182.62,182.59,19.1679]
[1722015000806,13.03,182.61,182.59,19.1679]
[1722015001230,13.03,182.61,182.6,5.4764]
[1722015002715,13.03,182.62,182.6,5.4764]
[1722015003828,0.775273,182.66,182.6,5.4764]
[1722015004016,13.03,182.62,182.6,5.4764]
[1722015004334,13.03,182.61,182.6,5.4764]
[1722015004529,13.03,182.61,182.59,13.6913]
[1722015006036,13.03,182.61,182.6,5.4764]
[1722015007629,45.775273,182.66,182.61,13.6897]
[1722015007803,13.03,182.64,182.63,5.4755]
[1722015008012,13.03,182.65,182.64,5.475]
[1722015008309,58.03,182.65,182.64,5.475]
[1722015008727,58.03,182.65,182.63,19.1638]
[1722015009621,13.03,182.64,182.63,19.1638]
[1722015009837,13.03,182.64,182.63,13.6884]
[1722015011017,13.03,182.64,182.61,5.4761]
[1722015011212,13.03,182.62,182.6,19.1675]
[1722015011614,0.775273,182.66,182.6,13.6911]
[1722015011833,13.03,182.64,182.62,13.6892]
[1722015012140,13.03,182.65,182.64,5.4751]
[1722015012733,13.03,182.65,182.62,13.6892]
[1722015012917,13.03,182.63,182.62,13.6892]
[1722015013104,0.775273,182.66,182.62,13.6892]
[1722015013420,13.03,182.65,182.62,13.6892]
[1722015013816,0.775273,182.66,182.65,5.4749]
[1722015014004,13.805273,182.66,182.65,5.4749]
[1722015014517,13.805273,182.66,182.64,19.1628]
[1722015015113,0.775273,182.66,182.64,19.1628]
[1722015015431,0.775273,182.66,182.65,5.4749]
[1722015015631,0.775273,182.66,182.64,13.6877]
[1722015015632,0.775273,182.66,182.64,19.1628]
[1722015016108,0.775273,182.66,182.65,5.4749]
[1722015016632,13.805273,182.66,182.65,5.4749]
[1722015016845,0.775273,182.66,182.65,5.4749]
[1722015017906,13.805273,182.66,182.64,19.1629]
[1722015018830,0.775273,182.66,182.65,5.4749]
[1722015019014,13.805273,182.66,182.64,13.6877]
[1722015019330,13.805273,182.66,182.64,19.1627]
[1722015019542,13.805273,182.66,182.65,5.4749]
[1722015019708,0.775273,182.66,182.65,5.4749]
[1722015021102,13.805273,182.66,182.65,5.4749]
[1722015021821,13.805273,182.66,182.64,19.1628]
[1722015022020,13.805273,182.66,182.65,5.4749]
[1722015022424,0.775273,182.66,182.65,5.4749]
[1722015022809,13.805273,182.66,182.65,5.4749]
[1722015024025,0.775273,182.66,182.65,5.4749]
[1722015024209,13.805273,182.66,182.65,5.4749]
[1722015027847,0.775273,182.66,182.65,5.4749]
[1722015028714,5.4718,182.76,182.71,5.4728]
[1722015029141,25.4714,182.77,182.72,5.4728]
[1722015029435,11.03,182.74,182.73,19.1536]
[1722015031113,11.03,182.74,182.73,13.6811]
[1722015031316,13.03,182.74,182.73,19.1536]
[1722015032918,13.03,182.74,182.7,48.7992]
[1722015032919,13.03,182.74,182.7,13.6835]
[1722015033250,13.03,182.72,182.7,19.1568]
[1722015033621,13.03,182.72,182.71,5.4731]
[1722015035318,5.4717,182.76,182.71,5.4731]
[1722015035651,20.0,182.8,182.72,5.4726]
[1722015035839,5.4713,182.78,182.73,5.4724]
[1722015036149,45.0,182.77,182.73,5.4724]
[1722015036525,50.4713,182.77,182.73,5.4724]
[1722015036844,50.4713,182.77,182.72,5.4728]
[1722015037046,50.4713,182.77,182.73,22.6713]
[1722015037246,13.03,182.75,182.73,28.1438]
[1722015037552,13.03,182.74,182.73,28.1438]
[1722015038355,13.03,182.75,182.73,28.1438]
[1722015040164,13.03,182.78,182.77,5.4711]
[1722015040445,18.4999,182.82,182.77,26.7077]
[1722015040662,0.775273,182.84,182.77,13.6777]
[1722015040962,20.0,182.82,182.73,36.3522]
[1722015041249,20.0,182.82,182.71,5.4731]
[1722015041250,18.502,182.75,182.71,5.4731]
[1722015041429,13.03,182.75,182.72,5.4728]
[1722015042050,13.03,182.76,182.72,5.4728]
[1722015042640,13.03,182.76,182.74,5.4721]
[1722015042953,13.03,182.75,182.74,5.4721]
[1722015043249,13.03,182.76,182.74,5.4721]
[1722015043627,13.03,182.76,182.69,6.0482]
[1722015043825,13.03,182.74,182.73,5.4724]
[1722015044448,13.03,182.74,182.69,19.7325]
[1722015044746,45.0,182.73,182.69,13.6843]
[1722015044960,45.0,182.73,182.69,19.1578]
[1722015045129,13.03,182.71,182.7,5.4734]
[1722015046760,13.03,182.71,182.69,19.1579]
[1722015047257,13.03,182.72,182.7,5.4733]
[1722015047841,45.0,182.74,182.72,5.4727]
[1722015048042,13.03,182.73,182.72,5.4727]
[1722015048256,45.0,182.74,182.72,5.4727]
[1722015048257,13.03,182.74,182.72,5.4727]
[1722015049365,13.03,182.74,182.71,13.6822]
[1722015049961,13.03,182.73,182.71,13.6822]
[1722015050256,13.03,182.73,182.71,19.1552]
[1722015050433,13.03,182.73,182.72,5.4728]
[1722015050628,13.03,182.74,182.72,5.4728]
[1722015051029,13.03,182.74,182.73,5.4725]
[1722015051240,13.03,182.75,182.74,5.4722]
[1722015051442,13.03,182.76,182.74,19.1528]
[1722015051969,13.03,182.75,182.74,19.1528]
[1722015052261,5.471,182.78,182.73,5.4723]
[1722015052452,5.471,182.78,182.74,5.4722]
[1722015052644,50.4714,182.77,182.73,5.4725]
[1722015052857,13.03,182.74,182.73,5.4725]
[1722015054442,5.7263607,182.82,182.72,13.03]
[1722015054637,13.03,182.8,182.74,40.3899]
[1722015054835,13.03,182.8,182.79,19.1469]
[1722015055140,13.03,182.8,182.79,13.6762]
[1722015055360,13.03,182.8,182.79,19.1469]
[1722015057060,58.03,182.8,182.79,19.1469]
[1722015057262,13.03,182.8,182.79,19.1469]
[1722015059056,58.03,182.8,182.79,19.1469]
[1722015059257,0.775273,182.84,182.82,5.4696]
[1722015059625,25.4683,182.87,182.82,5.4696]
[1722015059861,20.0,182.85,182.82,5.4696]
[1722015060156,13.03,182.83,182.81,5.4701]
[1722015060344,13.03,182.82,182.79,19.1466]
[1722015060655,13.03,182.8,182.79,13.6762]
[1722015060862,58.03,182.8,182.79,19.1469]
[1722015061464,45.0,182.8,182.79,19.1469]
[1722015062233,5.4687,182.86,182.79,19.1469]
[1722015062234,40.0,182.87,182.82,5.4697]
[1722015062434,13.03,182.83,182.82,5.4697]
[1722015062645,58.03,182.83,182.82,5.4697]
[1722015062850,58.2,182.83,182.82,5.4697]
[1722015063830,58.2,182.83,182.81,13.6746]
[1722015064169,45.0,182.82,182.81,19.1447]
[1722015064342,2.26518203,182.9,182.81,19.1447]
[1722015064668,40.0,182.95,182.89,13.6694]
[1722015064854,40.0,182.95,182.85,13.03]
[1722015064855,7.67831257,182.94,182.85,13.03]
[1722015065053,7.67831257,182.94,182.92,5.4666]
[1722015065379,7.67831257,182.94,182.9,13.6686]
[1722015065380,13.03,182.93,182.9,13.6686]
[1722015065967,13.03,182.93,182.92,5.4668]
[1722015066167,0.917472,182.97,182.96,5.4656]
[1722015066472,0.917472,182.97,182.96,13.6641]
[1722015066645,0.917472,182.97,182.96,19.1297]
[1722015066967,13.947472,182.97,182.96,13.6641]
[1722015067169,0.917472,182.97,182.92,35.9401]
[1722015067466,0.917472,182.97,182.95,13.6648]
[1722015067771,0.917472,182.97,182.96,5.4656]
[1722015069244,0.775273,183.02,182.99,5.4644]
[1722015069465,13.03,183.0,182.99,5.4644]
[1722015069669,13.03,183.0,182.98,19.1271]
[1722015069958,13.03,182.99,182.98,13.6621]
[1722015070275,0.775273,183.02,183.01,13.6604]
[1722015070566,13.805273,183.02,182.99,5.4645]
[1722015070771,0.775273,183.02,183.01,5.4641]
[1722015071963,0.775273,183.02,183.01,18.4941]
[1722015072555,0.775273,183.02,183.01,5.4641]
[1722015073368,0.775273,183.02,183.01,11.8315]
[1722015074953,0.775273,183.02,183.01,6.3674]
[1722015075480,0.775273,183.02,182.98,16.2088]
[1722015075670,0.775273,183.02,182.96,13.6636]
[1722015076171,45.775273,183.02,182.96,13.6636]
[1722015076385,5.4647,183.0,182.95,5.4657]
[1722015076672,25.84,183.0,182.93,13.6663]
[1722015076850,45.0,182.99,182.93,13.6663]
[1722015077051,50.4647,182.99,182.94,5.4659]
[1722015077371,45.0,182.99,182.97,5.4653]
[1722015077573,25.84,183.0,182.96,13.6641]
[1722015077756,0.775273,183.02,182.96,13.6641]
[1722015078270,0.775273,183.02,183.01,5.4641]
[1722015078459,0.775273,183.02,183.0,19.1254]
[1722015078975,6.239173,183.02,182.97,5.4653]
[1722015079150,0.775273,183.02,182.95,40.9928]
[1722015079344,0.775273,183.02,182.99,5.4645]
[1722015079972,51.239173,183.02,182.97,19.1278]
[1722015080156,45.84,183.0,182.93,13.6657]
[1722015080356,45.0,182.99,182.93,13.6657]
[1722015080559,50.4648,182.99,182.94,5.4661]
[1722015081060,50.4648,182.99,182.93,13.6657]
[1722015081061,45.0,182.99,182.95,5.4659]
[1722015081264,45.0,182.99,182.96,5.4656]
[1722015081566,25.84,183.0,182.96,19.1295]
[1722015081766,45.84,183.0,182.93,13.6664]
[1722015081978,45.0,182.99,182.93,13.6664]
[1722015082350,25.84,183.0,182.96,13.6641]
[1722015082657,25.84,183.0,182.95,5.4656]
[1722015082978,25.84,183.0,182.96,5.4656]
[1722015083954,31.3045,183.0,182.96,5.4656]
[1722015084171,31.3045,183.0,182.95,19.1302]
[1722015084378,45.0,182.99,182.92,13.667]
[1722015084751,5.4653,182.98,182.93,5.4664]
[1722015084972,5.4654,182.97,182.92,19.1338]
[1722015085175,50.4657,182.96,182.92,13.667]
[1722015085885,5.4662,182.94,182.89,19.1368]
[1722015086094,31.3064,182.94,182.86,6.2845]
[1722015086260,25.84,182.94,182.86,6.2845]
[1722015086574,25.84,182.94,182.91,5.4671]
[1722015086777,45.0,182.93,182.89,19.1365]
[1722015087086,45.0,182.93,182.9,5.4674]
[1722015087458,45.0,182.93,182.89,19.1365]
[1722015087790,45.0,182.93,182.91,5.4671]
[1722015088285,45.0,182.93,182.89,19.1363]
[1722015089989,50.4667,182.93,182.89,13.6688]
[1722015090165,50.4667,182.93,182.86,6.2845]
[1722015090166,5.4669,182.92,182.87,5.4682]
[1722015090368,65.0,182.91,182.86,13.6714]
[1722015090568,76.3072,182.91,182.86,19.14]
[1722015090784,70.84,182.91,182.87,5.4682]
[1722015091084,45.0,182.91,182.8,21.4333]
[1722015091289,20.0,182.9,182.8,21.4333]
[1722015091589,45.0,182.89,182.85,5.4689]
[1722015091773,50.4677,182.89,182.85,5.4689]
[1722015091959,5.468,182.88,182.84,19.1416]
[1722015092160,45.0,182.87,182.84,19.1416]
[1722015092381,50.6378,182.89,182.84,19.1416]
[1722015092588,50.4678,182.89,182.84,19.1416]
[1722015092788,0.17,182.88,182.85,5.4689]
[1722015092965,45.0,182.89,182.86,5.4686]
[1722015093279,45.0,182.89,182.84,13.6725]
[1722015093280,50.4678,182.89,182.85,5.4688]
[1722015093591,45.0,182.89,182.85,5.4688]
[1722015093789,45.0,182.89,182.86,5.4686]
[1722015094586,65.0,182.89,182.85,5.4689]
[1722015095283,45.0,182.89,182.85,5.4689]
[1722015095678,45.0,182.89,182.86,5.4686]
[1722015095987,45.0,182.89,182.87,5.4683]
[1722015096189,45.0,182.89,182.86,5.4685]
[1722015096391,50.4677,182.89,182.84,13.6725]
[1722015096565,65.0,182.89,182.8,21.4333]
[1722015096769,25.4684,182.87,182.83,5.4695]
[1722015097096,45.0,182.86,182.83,5.4695]
[1722015097273,45.0,182.87,182.83,5.4695]
[1722015098485,65.0,182.87,182.81,19.145]
[1722015099086,70.4684,182.87,182.83,5.4694]
[1722015100189,20.0,182.85,182.81,13.6751]
[1722015100402,45.0,182.84,182.82,5.4696]
[1722015100690,45.0,182.84,182.75,27.3586]
[1722015100691,5.4704,182.81,182.75,5.4716]
[1722015100887,65.0,182.8,182.7,22.3407]
[1722015101072,65.0,182.8,182.75,13.6796]
[1722015101395,45.0,182.8,182.77,5.4711]
[1722015101694,45.0,182.8,182.75,13.6796]
[1722015101695,65.0,182.8,182.76,5.4715]
[1722015102478,0.17,182.79,182.76,5.4715]
[1722015104012,0.17,182.79,182.72,13.682]
[1722015104217,5.4715,182.77,182.73,5.4725]
[1722015104514,65.0,182.76,182.74,5.4722]
[1722015104806,65.0,182.76,182.73,5.4725]
[1722015105314,25.84,182.78,182.74,13.6798]
[1722015105497,45.0,182.77,182.75,5.4716]
[1722015105691,45.0,182.77,182.76,5.4716]
[1722015106406,45.0,182.77,182.74,13.6798]
[1722015106916,45.84,182.84,182.77,13.6783]
[1722015107084,45.17,182.83,182.77,13.6783]
[1722015107416,51.3093,182.84,182.79,5.4705]
[1722015107796,20.0,182.82,182.77,19.1493]
[1722015108003,5.4701,182.81,182.77,19.1493]
[1722015108310,5.4704,182.8,182.75,5.4718]
[1722015108508,25.4708,182.79,182.75,5.4718]
[1722015108688,45.17,182.78,182.74,19.1527]
[1722015109003,25.84,182.81,182.77,5.4713]
[1722015109210,45.17,182.8,182.77,5.4713]
[1722015109715,0.17,182.8,182.77,5.4713]
[1722015110021,0.17,182.8,182.76,19.1502]
[1722015110514,0.17,182.8,182.77,5.4712]
[1722015111511,0.17,182.8,182.78,5.4709]
[1722015112008,0.17,182.8,182.78,5.471]
[1722015112206,45.0,182.81,182.78,5.471]
[1722015112420,45.17,182.82,182.78,5.471]
[1722015112589,50.64,182.82,182.77,5.4712]
[1722015112793,5.4701,182.81,182.76,19.15]
[1722015113295,45.0,182.8,182.77,5.4713]
[1722015113494,45.84,182.84,182.76,13.6786]
[1722015113807,45.17,182.83,182.76,13.6786]
[1722015114012,45.17,182.83,182.78,13.677]
[1722015114688,50.6396,182.83,182.79,5.4707]
[1722015114914,50.6396,182.83,182.78,19.1479]
[1722015115400,45.17,182.83,182.79,5.4707]
[1722015115793,50.6395,182.83,182.78,40.5839]
[1722015116697,5.4699,182.82,182.78,40.5839]
[1722015116896,45.0,182.81,182.78,40.5839]
[1722015117397,45.0,182.82,182.78,40.5839]
[1722015118215,45.0,182.82,182.79,5.4707]
[1722015120462,45.0,182.82,182.78,40.5838]
[1722015121018,45.0,182.82,182.79,5.4706]
[1722015121196,50.4698,182.82,182.78,40.5839]
[1722015121717,45.0,182.82,182.78,40.5839]
[1722015122094,45.0,182.82,182.79,5.4706]
[1722015122316,45.17,182.83,182.79,5.4706]
[1722015122516,45.17,182.83,182.8,5.4704]
[1722015122904,45.17,182.83,182.81,5.4701]
[1722015123100,0.17,182.83,182.81,5.4701]
[1722015123297,31.3084,182.87,182.83,5.4695]
[1722015123514,31.3084,182.87,182.8,13.6756]
[1722015123721,20.0,182.86,182.82,5.4697]
[1722015123897,20.0,182.86,182.81,5.47]
[1722015123898,25.4687,182.86,182.81,5.47]
[1722015124419,5.469,182.85,182.8,19.146]
[1722015124596,50.4694,182.84,182.8,13.6756]
[1722015125017,45.0,182.84,182.8,13.6756]
[1722015125207,45.0,182.85,182.8,13.6756]
[1722015125709,50.469,182.85,182.8,19.146]
[1722015126125,45.0,182.85,182.82,5.4697]
[1722015126498,45.0,182.85,182.81,5.47]
[1722015126900,50.469,182.85,182.81,5.47]
[1722015127209,12.96,182.82,182.81,5.47]
[1722015127409,57.96,182.82,182.81,5.47]
[1722015127915,57.96,182.82,182.8,13.6756]
[1722015128117,57.96,182.81,182.78,26.9067]
[1722015128321,12.96,182.79,182.78,26.9067]
[1722015128908,12.96,182.79,182.77,13.678]
[1722015128909,57.96,182.79,182.77,13.678]
[1722015129123,12.96,182.78,182.77,19.1492]
[1722015129838,57.96,182.78,182.77,13.678]
[1722015130833,57.96,182.78,182.75,5.4719]
[1722015131001,57.96,182.78,182.69,22.6089]
[1722015131002,12.96,182.76,182.69,22.6089]
[1722015131330,70.6419,182.75,182.71,5.473]
[1722015131512,45.17,182.75,182.71,5.473]
[1722015131712,45.17,182.75,182.74,5.4722]
[1722015131921,45.0,182.75,182.74,5.4722]
[1722015132221,26.0477,182.84,182.72,13.6816]
[1722015132222,25.94,182.82,182.76,13.6791]
[1722015132431,45.17,182.81,182.77,5.4712]
[1722015133238,25.94,182.82,182.76,13.6791]
[1722015133528,25.4701,182.81,182.76,13.6791]
[1722015133727,20.0,182.79,182.76,19.1507]
[1722015133915,25.4701,182.81,182.76,19.1507]
[1722015134306,25.4701,182.81,182.71,27.3645]
[1722015134307,20.0,182.79,182.74,5.4719]
[1722015134507,20.0,182.79,182.75,5.4718]
[1722015134707,20.0,182.79,182.73,13.6812]
[1722015134907,45.17,182.78,182.73,13.6812]
[1722015135326,45.17,182.78,182.74,5.4719]
[1722015135728,45.17,182.78,182.75,5.4719]
[1722015136903,45.17,182.78,182.73,13.6812]
[1722015136904,45.17,182.78,182.76,5.4716]
[1722015137103,45.17,182.78,182.73,13.6812]
[1722015137305,45.17,182.78,182.74,5.4721]
[1722015138428,20.0,182.77,182.74,5.4721]
[1722015138733,45.0,182.76,182.73,19.1537]
[1722015138913,0.17,182.75,182.73,19.1537]
[1722015140313,0.17,182.75,182.74,5.4722]
[1722015140519,45.0,182.76,182.73,13.6812]
[1722015140824,45.0,182.76,182.75,5.4719]
[1722015141029,51.4099,182.82,182.78,5.471]
[1722015141722,51.4099,182.82,182.76,19.1498]
[1722015142041,20.0,182.8,182.76,13.6784]
[1722015142253,20.0,182.8,182.76,19.1499]
[1722015142419,45.0,182.79,182.78,5.4708]
[1722015142625,45.94,182.85,182.79,13.6764]
[1722015142965,45.94,182.85,182.81,5.4699]
[1722015143240,25.94,182.85,182.79,13.6764]
[1722015143848,25.94,182.85,182.81,5.47]
[1722015144421,45.17,182.84,182.82,5.4698]
[1722015144742,20.0,182.87,182.83,5.4695]
[1722015145329,25.4684,182.87,182.82,5.4698]
[1722015145648,5.4687,182.86,182.81,19.1449]
[1722015146146,45.17,182.85,182.81,19.1449]
[1722015146547,45.17,182.85,182.82,5.4698]
[1722015146734,45.17,182.85,182.81,19.1448]
[1722015147737,20.0,182.9,182.79,27.3529]
[1722015147951,25.94,182.91,182.87,5.4683]
[1722015148165,25.94,182.91,182.86,5.4686]
[1722015148166,5.4675,182.9,182.86,5.4686]
[1722015148448,25.4675,182.9,182.85,19.1406]
[1722015148753,5.4675,182.9,182.85,19.1406]
[1722015149053,31.4072,182.91,182.86,5.4685]
[1722015149749,51.4063,182.94,182.89,5.4676]
[1722015149924,25.4663,182.94,182.89,5.4676]
[1722015150248,33.6662,182.94,182.85,6.5399]
[1722015150433,20.0,182.9,182.85,6.5399]
[1722015151149,25.4677,182.9,182.85,12.0086]
[1722015151349,0.17,182.89,182.86,5.4686]
[1722015151732,45.17,182.89,182.86,5.4686]
[1722015153255,45.17,182.89,182.87,5.4682]
[1722015153431,0.17,182.89,182.87,5.4682]
[1722015154348,25.94,182.92,182.85,6.5399]
[1722015154657,20.0,182.94,182.85,7.63346985]
[1722015154952,20.0,182.94,182.9,5.4673]
[1722015155332,25.4662,182.94,182.89,5.4676]